Cogmind - Beta 15 @@@ ROGUE MODE // 2025.05.12 @ 20:20:05 Player: Gimcond Result: Self-destructed Performance ------------- Evolutions (1) 500 Regions Visited (2) 400 Robots Destroyed (19) 95 Value Destroyed (484) 484 Prototype IDs (0) 0 Alien Tech Used (0) 0 Bonus (0) 0 TOTAL SCORE: 1479 Bonus ------- None Cogmind --------- Core Integrity 380/400 Matter 300/300 Energy 265/265 System Corruption 0% Temperature Cool (0) Movement Treading (160) Location -9/Materials Parts ------- > --- POWER (1) -------- Improved Ion Engine > --- PROPULSION (3) --- Light Treads Light Treads > --- UTILITY (2) ------ Small Storage Unit ECM Suite > --- WEAPON (3) ------- Medium Laser Autogun > --- INVENTORY (8) ---- Ion Engine Light Ion Engine Aluminum Leg Aluminum Leg ECM Suite Tractor Beam Assault Rifle Assault Rifle Peak State ------------ > --- POWER ------------ Improved Ion Engine > --- PROPULSION ------- Light Treads Light Treads Light Treads > --- UTILITY ---------- Small Storage Unit ECM Suite > --- WEAPON ----------- Heavy EM Pulse Gun Medium Laser Autogun > --- INVENTORY -------- Aluminum Leg Aluminum Leg ECM Suite Tractor Beam Assault Rifle Assault Rifle [Rating: 12] Favorites ----------- Power Light Ion Engine Engine Light Ion Engine Propulsion Light Treads Treads Light Treads Utility Small Storage Unit Device ECM Suite Storage Small Storage Unit Weapon Assault Rifle Energy Gun Medium Laser Ballistic Gun Assault Rifle Build | -11 -10 -9 ------- Run | Yrd Mat Mat Slots Evolved 2 | . . 2 Power . | . . . Propulsion 1 | . . 1 Utility . | . . . Weapon 1 | . . 1 Parts Attached 13 | 7 2 4 Power 2 | 1 . 1 Engine 2 | 1 . 1 Core . | . . . Reactor . | . . . Propulsion 3 | 2 . 1 Treads 3 | 2 . 1 Leg . | . . . Wheel . | . . . Hover . | . . . Flight . | . . . Utility 3 | 2 1 . Device 2 | 1 1 . Storage 1 | 1 . . Processor . | . . . Hackware . | . . . Protection . | . . . Artifact . | . . . Weapon 5 | 2 1 2 Energy Gun 2 | 1 . 1 Energy Cannon . | . . . Ballistic Gun 3 | 1 1 1 Ballistic Cannon . | . . . Launcher . | . . . Special Weapon . | . . . Impact Weapon . | . . . Slashing Weapon . | . . . Piercing Weapon . | . . . Special Melee Weapon . | . . . Unidentified Prototypes . | . . . Parts Lost 3 | . . 3 Power 1 | . . 1 Propulsion 1 | . . 1 Utility . | . . . Weapon 1 | . . 1 Highest Loss Streak 1 | . . 1 To Critical Strikes . | . . . Average Backups 4 | 2 4 5 Power . | . . . Propulsion 1 | 1 2 2 Utility 1 | . 1 2 Weapon 1 | 1 1 1 Tool/Special . | . . . Unused Backups 6 | . 1 5 Power 2 | . . 2 Propulsion 2 | . . 2 Utility 1 | . . 1 Weapon 1 | . 1 . Tool/Special . | . . . Average Slot Usage (%) 93 | . 95 92 Engine 11 | . 14 10 Treads 28 | . 28 28 Device 12 | . 14 11 Storage 12 | . 14 11 Energy Gun 10 | . . 18 Ballistic Gun 17 | . 23 12 Peak Build Rating 12 | 6 7 12 Average Rating 8 | 4 6 10 On Entrance 4 | . 6 7 Naked Turns . | . . . Heaviest Build 22 | 12 14 22 Greatest Support 60 | 40 40 60 Greatest Overweight (x) . | . . . Average Overweight (x) . | . . . Largest Inventory Capacity 8 | 8 8 8 Average Capacity 7 | 7 8 8 Most Carried 8 | 5 6 8 Average Carried 4 | 2 4 5 Final Capacity 8 | 8 8 8 Final Carried 8 | 4 5 8 Class Distribution -------------------- 59% | Mutant 40% | Gunner Dominant Class ---------------- Mutant | -10/Materials Gunner | -9/Materials Resources | -11 -10 -9 ----------- Run | Yrd Mat Mat Matter Collected 563 | 285 71 207 Remotely 296 | 259 37 . Salvage Created 659 | 81 114 464 Parts 51 | 5 12 34 Haulers Intercepted . | . . . Recyclers Shooed 4 | 1 2 1 Parts Field Recycled . | . . . Retrieved Matter . | . . . Parts Self-Destructed . | . . . Prevented . | . . . Kills | -11 -10 -9 ------- Run | Yrd Mat Mat Combat Hostiles Destroyed 17 | . 4 13 Guns 15 | . 4 11 AOE 2 | . . 2 Classes Destroyed 5 | 2 2 1 Tunneler 1 | 1 . . Recycler 1 | 1 . . Swarmer 6 | . 2 4 Grunt 10 | . 2 8 Sentry 1 | . . 1 Best Kill Streak 4 | 2 2 4 Combat Bots Only 4 | . 2 4 Max Kills in Single Turn 2 | 1 1 2 Gunslinging . | . . . Exploded 2 | . . 2 Melee . | . . . Uniques/NPCs Destroyed . | . . . Combat | -11 -10 -9 -------- Run | Yrd Mat Mat Hostile Shots Fired 90 | . 17 73 Missed 25 | . 5 20 Hits 65 | . 12 53 Projectile 65 | . 12 53 Damage Taken 711 | . 113 598 Core 42 | . 22 20 Absorbed by Shields . | . . . Core Remaining (%) 95 | 100 91 . Volleys Fired 49 | 5 20 24 Largest 3 | 1 2 3 Hottest 118 | 20 40 118 Shots Fired 106 | 5 30 71 Gun 106 | 5 30 71 Cannon . | . . . Launcher . | . . . Special . | . . . Kinetic 59 | 5 30 24 Thermal 24 | . . 24 Explosive . | . . . Electromagnetic 23 | . . 23 Robot Hit Streak 11 | 5 6 11 Robot Miss Streak 3 | . 3 2 Penetration Max . | . . . Secondary Targets 2 | . . 2 Max Gunslinging Chain 1 | . . 1 Shots Hit Robots 64 | 5 15 44 Core Hits 29 | 3 7 19 Critical Kills . | . . . Critical Parts Destroyed 2 | 1 1 . Critical Strikes 5 | 1 1 3 Burn 2 | . . 2 Destroy 2 | 1 1 . Corrupt 1 | . . 1 Melee Attacks . | . . . Impact . | . . . Slashing . | . . . Piercing . | . . . Sneak Attacks . | . . . Combat Hostiles . | . . . Follow-up Attacks . | . . . Damage Inflicted 976 | 65 174 737 Guns 859 | 65 174 620 Cannons . | . . . Explosions 112 | . . 112 Melee . | . . . Ramming 5 | . . 5 Kinetic 437 | 65 174 198 Thermal 276 | . . 276 Explosive . | . . . Electromagnetic 258 | . . 258 Impact . | . . . Slashing . | . . . Piercing . | . . . Highest Corruption 1 | . 1 . Average Corruption 1 | . 1 . Corruption Purged . | . . . Corruption Blocked . | . . . Effects 1 | . 1 . Weapon Failures 1 | . 1 . Overload Shots . | . . . Overflow Damage . | . . . Projectiles . | . . . Explosions . | . . . Melee . | . . . Knockbacks . | . . . Impact . | . . . Kinetic . | . . . Secondary . | . . . Self-Inflicted Damage 49 | . . 49 Shots 1 | . . 1 Rammed 4 | . . 4 Targets Rammed 4 | . . 4 Kicked . | . . . Crushed . | . . . Highest Temperature 349 | . 2 349 Average Temperature 114 | . 2 115 Received Heat Transfer 186 | . 24 162 Effects 1 | . . 1 Matter Decay 1 | . . 1 Siege Activations . | . . . Martial Activations . | . . . Shielding Activations . | . . . Robots Disrupted . | . . . Combat Hostiles . | . . . Robots Corrupted . | . . . Combat Hostiles . | . . . Parts Fried 1 | . . 1 Impact Corruptions . | . . . Robots Melted . | . . . Combat Hostiles . | . . . Parts Melted 1 | . . 1 Heat Transferred 729 | . . 729 Parts Sabotaged . | . . . Parts Stolen . | . . . Parts Stripped . | . . . Power Chain Reactions 1 | . . 1 Alert | -11 -10 -9 ------- Run | Yrd Mat Mat Maximum Alert Level 1 | . . 1 Low Security (%) 92 | 100 100 84 Level 1 7 | . . 15 Level 2 . | . . . Level 3 . | . . . Level 4 . | . . . Level 5 . | . . . High Security . | . . . Max Security . | . . . Peak Influence 266 | 10 40 266 Initial . | . . . Average 48 | . 15 85 Influence Increases 520 | 10 94 416 Destroy 0b10 Robot/C 340 | . 80 260 Destroy 0b10 Robot/NC 10 | 10 . . Destroy Leader 70 | . 10 60 Successful Hack 4 | . 4 . Destroy Structure 6 | . . 6 Lose Combat Pursuer 90 | . . 90 Influence Decreases 274 | 10 94 170 Time Decay 244 | 10 94 140 Lost Part 30 | . . 30 Squads Dispatched 4 | . 1 3 Investigation 1 | . . 1 Extermination . | . . . Reinforcement 3 | . 1 2 Assault . | . . . Garrison . | . . . Intercept . | . . . Searches Triggered . | . . . Construction Impeded 1 | . . 1 Haulers Reinforced . | . . . Active Scanning Responses . | . . . Cargo Convoy Interrupts . | . . . Stealth | -11 -10 -9 --------- Run | Yrd Mat Mat Distress Signals 2 | . 2 . Communications Jammed . | . . . Distress Signals . | . . . Times Spotted 35 | . 12 23 Peak Tracking Total 7 | . 4 7 Tactical Retreats 4 | . 2 2 Traps | -11 -10 -9 ------- Run | Yrd Mat Mat Traps Triggered 1 | . 1 . Indirectly . | . . . Trap Hack Attempts . | . . . Triggered . | . . . Disarmed . | . . . Reprogrammed . | . . . Reused . | . . . Traps Extracted . | . . . Installed . | . . . Triggered . | . . . Machines | -11 -10 -9 ---------- Run | Yrd Mat Mat Machines Disabled . | . . . Max in Single Turn . | . . . Machines Repaired . | . . . Machines Dismantled . | . . . Machines Sabotaged . | . . . Overloaded Fab Kills . | . . . Hacking | -11 -10 -9 --------- Run | Yrd Mat Mat Machines Accessed 4 | . 1 3 Terminals 4 | . 1 3 Fabricators . | . . . Repair Stations . | . . . Recycling Units . | . . . Scanalyzers . | . . . Garrison Access . | . . . Total Hacks 9 | . 2 7 Successful 2 | . 2 . Failed 7 | . . 7 Catastrophic 3 | . . 3 Database Lockouts . | . . . Manual . | . . . Terminals 9 | . 2 7 Fabricators . | . . . Repair Stations . | . . . Recycling Units . | . . . Scanalyzers . | . . . Garrison Access . | . . . Terminal Hacks 2 | . 2 . Emergency Access Points 1 | . 1 . Alert Level 1 | . 1 . Fabricator Hacks . | . . . Repair Station Hacks . | . . . Recycling Unit Hacks . | . . . Scanalyzer . | . . . Garrison Access Hacks . | . . . Unauthorized Hacks . | . . . Terminals . | . . . Fabricators . | . . . Repair Stations . | . . . Recycling Units . | . . . Scanalyzers . | . . . Garrison Access . | . . . Data Cores Recovered . | . . . Used . | . . . Hacking Detections 3 | . . 3 Full Trace Events 2 | . . 2 Feedback Events . | . . . Feedback Blocked . | . . . Robot Schematics Acquired . | . . . Robots Built . | . . . Authchips . | . . . Time . | . . . Total Robot Build Rating . | . . . Part Schematics Acquired . | . . . Parts Built . | . . . Authchips . | . . . Time . | . . . Total Part Build Rating . | . . . Parts Repaired . | . . . Time . | . . . Parts Recycled . | . . . Recycled Matter . | . . . Retrieved Matter . | . . . Retrieved Components . | . . . Parts Scanalyzed . | . . . Part Schematics Acquired . | . . . Parts Damaged . | . . . Bothacking | -11 -10 -9 ------------ Run | Yrd Mat Mat Used RIF Installer . | . . . Robots Hacked . | . . . Non-combat . | . . . Combat . | . . . Robot Hacks Applied . | . . . Relay Couplers Released . | . . . Fabnet Peak Effective % . | . . . Robots Rewired . | . . . Allies Hacked . | . . . Hacks Repelled . | . . . Allies | -11 -10 -9 -------- Run | Yrd Mat Mat Total Allies . | . . . Largest Group . | . . . Highest-Rated Group . | . . . Highest-Rated Ally . | . . . Total Orders . | . . . Ally Attacks . | . . . Total Damage . | . . . Kills . | . . . Allies Corrupted . | . . . Allies Melted . | . . . Intel | -11 -10 -9 ------- Run | Yrd Mat Mat Active Infowar (turns) 325 | . 177 148 ECM 325 | . 177 148 Robot Analysis Total . | . . . Derelict Logs Recovered . | . . . Drone Launches . | . . . Drone Recoveries . | . . . Exploration | -11 -10 -9 ------------- Run | Yrd Mat Mat Turns Passed 742 | 90 287 365 Spaces Moved 344 | 46 137 161 Core 12 | 12 . . Treads 332 | 34 137 161 Legs . | . . . Wheels . | . . . Hover . | . . . Flight . | . . . Fastest Speed 50 | 50 160 160 Average Speed 156 | 131 160 160 Slowest Speed 160 | 160 160 160 Overloaded Moves . | . . . Propulsion Burnouts . | . . . Robots Hopped . | . . . Potential Cave-ins . | . . . Cave-ins Triggered . | . . . Exploration Rate (%) 24 | 4 39 29 Regions Visited 2 Branch Regions . Pre-discovered Areas . | . . . Known Exits Taken . | . . . Unknown Exits Taken 2 | 1 1 . Scrap Searched . | . . . Spaces Dug . | . . . Terrain Destroyed 4 | . . 4 Melee . | . . . Projectile . | . . . AOE 4 | . . 4 Terrain Rammed . | . . . Walls Destroyed . | . . . Machines Disabled . | . . . Actions | -11 -10 -9 --------- Run | Yrd Mat Mat Total 459 | 71 175 213 Wait 27 | 4 10 13 Move 342 | 45 136 161 Hop . | . . . Pick Up 19 | 9 4 6 Fast Attach 1 | 1 . . Attach 11 | 6 2 3 Detach 2 | 1 1 . Swap 2 | . . 2 Drop 2 | . 2 . Fire 49 | 5 20 24 Melee . | . . . Ram . | . . . Kick . | . . . Crush 4 | . . 4 Escape Stasis . | . . . Rewire . | . . . Trap . | . . . Miscellaneous . | . . . Route ------- -11/Scrapyard -10/Materials (discovered 2 exits: *Mat / [*Min]) -9/Materials (discovered 1 exit: [*Sto]) History --------- Turn | Location | Event 28 | -11/Scrapyard | Discovered new exit (range 15) 91 | -11/Scrapyard | Entered Materials 248 | -10/Materials | Discovered new exit (range 12) 317 | -10/Materials | Build established: Mutant 354 | -10/Materials | Discovered new exit (range 15) 378 | -10/Materials | Entered another Materials area 378 | -9/Materials | Evolved 2 slots: Propulsion x1, Weapon x1 488 | -9/Materials | Discovered new exit (range 9) 743 | -9/Materials | Self-destructed Last Messages --------------- 00688_ Flight Unit melted. 00688_ S-10 Pest destroyed. 00689_ K-01 Serf collects debris. 00690_ R-06 Scavenger collects Lgt. Ion Engine. 00693_ Acquired 11 matter. 00694_ Slammed into R-06 Scavenger. 00694_ K-01 Serf collects debris. 00701_ Acquired Lgt. Ion Engine. 00701_ K-01 Serf collects debris. 00702_ R-06 Scavenger collects Corrupted Lgt. Assault Rifle. 00703_ K-01 Serf collects debris. 00705_ R-06 Scavenger collects Flight Unit. 00707_ K-01 Serf collects debris. 00708_ R-06 Scavenger collects Flight Unit. 00709_ K-01 Serf collects debris. 00711_ Connecting with Terminal... 00714_ K-01 Serf collects debris. 00726_ Slammed into A-02 Transporter. 00737_ Lgt. Treads destroyed. Map ----- +----------------------------------------------------+ | ???????????????????????????????????? | | ???????????????????????????????????? | | ???????????????????????????????????? | | ???????????????????????????????????? | | ???????????????????????????????????? | | ???????????????????????????????????? | | ???????????????????????????????????? | | ???????????????????????????????????? | | ???????????????????????????????????? | | ???????????????????????????????????? | | ?????????? ????????????????????????? | | ?????????? ????????????????????????? | | ???# ????#w????????????????????????? | | ???# ##### ????????????????????????? | | ???# | ?????????######????###??? | | ???# ????????##!!!!##??? +??? | | ???# ????????#! !#?? #??? | | ???# ###?????# #?? +??? | | ???? ####### ### #??? | | ???# #??? | | ???# """ % #??? | | ???# """ #??? | | ???# """ #??? | | ???# #???????? | | ???# k % #???##### | | ???# """ @########## #???# | | ???# """ #????????# % %#???# " | | ???# """a #????????# [% %##### "" | | ???? #????????# [ %% /% "" | | ???# #????????# =##### "" | | ???# """ #????????# =#???# " | | ???# "T #????????## ##???# | | ???# """ +???????### # # | | ???# #???????#"" / "" ##### | | ???#?? ????????#T # "T #???? | | ??????### ????????### # "" #???? | | ????????# ??????????# ###? #???? | | ????????# ??????????# #???? #???? | | ????????+ ?????????? #????? #???? | | ????????# ##??????????# #??????#???? | | ????????? ????????????# #??????????? | | ??????????????????????# #??????????? | | ??????????????????????# ???????????? | | ??????????????????????? ???????????? | | ??????????????????????? ???????????? | | ??????????????????????? ???????????? | | ??????????????????????? ???????????? | | ??????????????????????? ???????????? | | ??????????????????????? ???????????? | | ???????????????????????????????????? | +----------------------------------------------------+ Best States ------------- Heat Dissipation 28 Energy Generation 12 Energy Capacity 265 Matter Stores 300 Matter Capacity 300 Sight Range 16 Terrain Scan Density 10 ECM Strength 1 Evasion (%) 50 Recoil Reduction 3 Item Schematics ----------------- None Robot Schematics ------------------ None Fabricated ------------ Nothing Repaired ---------- Nothing Alien Tech Used ----------------- None Achievements -------------- None Challenges ------------ None Game ------ Seed HugePersonalMegatreads Manual? 0 Play Time 00:10:06 Cumulative 10.7 hours Start 2025.05.07 @ 19:31:18 End 2025.05.12 @ 20:20:05 Sessions 2 Manual Loads 0 Difficulty Rogue Special Mode None Game No. 33 Rogue 33 Adventurer 0 Explorer 0 Win Type - Total 0 Types 0/0/0/0/0/0/0/0/0/0 Lore% 10 Gallery% 14 Achievement% 17 Wizard Run 0 Options --------- Layout 1 ASCII 1 Keyboard 0 Movement Mouse Keybinds 0 Fullscreen 1 Font 24/Smallcaps Map View 50x35 Zoom Use 0% Tactical HUD 1 Map Filters NONE Filters NONE Steam 1 RUN: 406cd106-f503-41c7-bcd8-7eee303540cb